fUSD/lending_fUSD_20251110
["ID","MTS","AMOUNT","RATE_DAILY","PERIOD"]
[393556706,1762797059473,-151.0,0.00038809,120]
[393556707,1762797059483,-235.516072,0.00038809,120]
[393556708,1762797059494,-151.0,0.00038809,120]
[393556709,1762797059504,-151.0,0.00038809,120]
[393556710,1762797059514,-235.516072,0.00038809,120]
[393556711,1762797059523,-181.918752,0.00038809,120]
[393556712,1762797059535,-151.0,0.00038809,120]
[393556713,1762797059544,-235.516072,0.00038809,120]
[393556714,1762797059554,-151.0,0.00038809,120]
[393556715,1762797059563,-602.261081,0.00038809,120]
[393556716,1762797059572,-151.0,0.00038809,120]
[393556717,1762797059583,-151.0,0.00038809,120]
[393556718,1762797059595,-602.261081,0.00038809,120]
[393556719,1762797059605,-151.0,0.00038809,120]
[393556720,1762797059615,-602.261081,0.00038809,120]
[393556721,1762797059625,-151.0,0.00038809,120]
[393556722,1762797059635,-602.261081,0.00038809,120]
[393556723,1762797059645,-229.658512,0.00038809,120]
[393556724,1762797059655,-229.658512,0.00038809,120]
[393556725,1762797059665,-229.658512,0.00038809,120]
[393556726,1762797059675,-229.658512,0.00038809,120]
[393556727,1762797059684,-151.0,0.00038809,120]
[393556728,1762797059694,-156.335043,0.00038809,120]
[393556729,1762797059704,-156.335043,0.00038809,120]
[393556730,1762797059714,-151.0,0.00038809,120]
[393556731,1762797059725,-223.187805,0.00038809,120]
[393556732,1762797059735,-156.335043,0.00038809,120]
[393556733,1762797059745,-288.737275,0.00038809,120]
[393556734,1762797059754,-223.187805,0.00038809,120]
[393556735,1762797059764,-156.335043,0.00038809,120]
[393556736,1762797059774,-288.737275,0.00038809,120]
[393556737,1762797059785,-223.187805,0.00038809,120]
[393556738,1762797059795,-288.737275,0.00038809,120]
[393556739,1762797059805,-223.187805,0.00038809,120]
[393556740,1762797059815,-288.737275,0.00038809,120]
[393556741,1762797059824,-193.691085,0.00038809,120]
[393556742,1762797059835,-193.691085,0.00038809,120]
[393556743,1762797059845,-151.0,0.00038809,120]
[393556744,1762797059855,-193.691085,0.00038809,120]
[393556745,1762797059865,-151.0,0.00038809,120]
[393556746,1762797059874,-193.691085,0.00038809,120]
[393556747,1762797059885,-531.780223,0.00038809,120]
[393556748,1762797059896,-151.0,0.00038809,120]
[393556749,1762797059905,-531.780223,0.00038809,120]
[393556750,1762797059914,-151.0,0.00038809,120]
[393556751,1762797059924,-531.780223,0.00038809,120]
[393556752,1762797059934,-234.323809,0.00038809,120]
[393556753,1762797059944,-279.532353,0.00038809,120]
[393556754,1762797059954,-151.0,0.00038809,120]
[393556755,1762797059964,-513.65755,0.00038809,120]
[393556756,1762797059977,-531.780223,0.00038809,120]
[393556757,1762797059987,-212.618371,0.00038809,120]
[393556758,1762797059997,-416.545079,0.00038809,120]
[393556759,1762797060006,-234.323809,0.00038809,120]
[393556760,1762797060016,-263.168349,0.00038809,120]
[393556761,1762797060025,-151.0,0.00038809,120]
[393556762,1762797060035,-513.65755,0.00038809,120]
[393556763,1762797060045,-212.618371,0.00038809,120]
[393556764,1762797060055,-416.545079,0.00038809,120]
[393556765,1762797060065,-234.323809,0.00038809,120]
[393556766,1762797060076,-269.006095,0.00038809,120]
[393556767,1762797060086,-263.168349,0.00038809,120]
[393556768,1762797060095,-513.65755,0.00038809,120]
[393556769,1762797060105,-212.618371,0.00038809,120]
[393556770,1762797060114,-416.545079,0.00038809,120]
[393556771,1762797060125,-234.323809,0.00038809,120]
[393556772,1762797060139,-269.006095,0.00038809,120]
[393556773,1762797060149,-263.168349,0.00038809,120]
[393556774,1762797060159,-212.618371,0.00038809,120]
[393556775,1762797060170,-151.0,0.00038809,120]
[393556776,1762797060180,-513.65755,0.00038809,120]
[393556777,1762797060191,-416.545079,0.00038809,120]
[393556778,1762797060201,-151.0,0.00038809,120]
[393556779,1762797060212,-269.006095,0.00038809,120]
[393556780,1762797060226,-151.0,0.00038809,120]
[393556781,1762797060242,-263.168349,0.00038809,120]
[393556782,1762797060253,-151.0,0.00038809,120]
[393556783,1762797060263,-269.006095,0.00038809,120]
[393556784,1762797060273,-151.0,0.00038809,120]
[393556785,1762797060283,-151.0,0.00038809,60]
[393556786,1762797060293,-222.097129,0.00038809,120]
[393556787,1762797060303,-151.0,0.00038809,120]
[393556788,1762797060313,-222.097129,0.00038809,120]
[393556789,1762797060323,-151.0,0.00038809,120]
[393556790,1762797060334,-151.0,0.00038809,120]
[393556791,1762797060343,-222.097129,0.00038809,120]
[393556792,1762797060357,-151.0,0.00038809,120]
[393556793,1762797060367,-151.0,0.00038809,28]
[393556794,1762797060377,-222.097129,0.00038809,120]
[393556795,1762797060387,-151.0,0.00038809,120]
[393556796,1762797060397,-151.0,0.00038809,28]
[393556797,1762797060407,-151.0,0.00038809,120]
[393556798,1762797060417,-151.0,0.00038809,120]
[393556799,1762797060427,-151.0,0.00038809,120]
[393556800,1762797060437,-151.0,0.00038809,120]
[393556801,1762797060447,-151.0,0.00038809,120]
[393556802,1762797060460,-151.0,0.00038809,120]
[393556803,1762797060470,-285.62503,0.00038809,120]
[393556804,1762797060481,-222.903386,0.00038809,120]
[393556805,1762797060491,-222.903386,0.00038809,120]
[393556806,1762797060502,-285.62503,0.00038809,120]
[393556807,1762797060512,-222.903386,0.00038809,120]
[393556808,1762797060521,-151.0,0.00038809,120]
[393556809,1762797060532,-285.62503,0.00038809,120]
[393556810,1762797060542,-222.903386,0.00038809,120]
[393556811,1762797060555,-151.0,0.00038809,120]
[393556812,1762797060565,-151.0,0.00038809,120]
[393556813,1762797060575,-285.62503,0.00038809,120]
[393556814,1762797060585,-151.0,0.00038809,120]
[393556815,1762797060595,-151.0,0.00038809,120]
[393556816,1762797060604,-151.0,0.00038809,120]
[393556817,1762797060614,-151.0,0.00038809,120]
[393556818,1762797060624,-153.077773,0.00038809,120]
[393556819,1762797060634,-451.876754,0.00038809,120]
[393556820,1762797060644,-436.994784,0.00038809,120]
[393556821,1762797060654,-362.491888,0.00038809,120]
[393556822,1762797060666,-436.994784,0.00038809,120]
[393556823,1762797060676,-451.876754,0.00038809,120]
[393556824,1762797060687,-362.491888,0.00038809,120]
[393556825,1762797060697,-151.0,0.00038809,120]
[393556826,1762797060706,-151.0,0.00038809,120]
[393556827,1762797060715,-436.994784,0.00038809,120]
[393556828,1762797060728,-362.491888,0.00038809,120]
[393556829,1762797060744,-451.876754,0.00038809,120]
[393556830,1762797060754,-251.544077,0.00038809,120]
[393556831,1762797060765,-151.0,0.00038809,120]
[393556832,1762797060775,-436.994784,0.00038809,120]
[393556833,1762797060785,-362.491888,0.00038809,120]
[393556834,1762797060795,-251.544077,0.00038809,120]
[393556835,1762797060807,-451.876754,0.00038809,120]
[393556836,1762797060816,-151.0,0.00038809,120]
[393556837,1762797060826,-251.544077,0.00038809,120]
[393556838,1762797060836,-591.384018,0.00038809,30]
[393556839,1762797060909,-236.95577,0.00038809,120]
[393556840,1762797060922,-251.544077,0.00038809,120]
[393556841,1762797060932,-591.384018,0.00038809,30]
[393556842,1762797060942,-236.95577,0.00038809,120]
[393556843,1762797060951,-1018.263206,0.00038809,120]
[393556844,1762797060961,-1018.263206,0.00038809,120]
[393556845,1762797060970,-236.95577,0.00038809,120]
[393556846,1762797060982,-591.384018,0.00038809,30]
[393556847,1762797060991,-151.0,0.00038809,15]
[393556848,1762797061000,-151.0,0.00038809,120]
[393556849,1762797061010,-1018.263206,0.00038809,120]
[393556850,1762797061020,-236.95577,0.00038809,120]
[393556851,1762797061029,-591.384018,0.00038809,30]
[393556852,1762797061039,-151.0,0.00038809,15]
[393556853,1762797061048,-1018.263206,0.00038809,120]
[393556854,1762797061058,-151.0,0.00038809,120]
[393556855,1762797061068,-151.0,0.00038809,15]
[393556856,1762797061077,-151.0,0.00038809,120]
[393556857,1762797061087,-151.0,0.00038809,120]
[393556858,1762797061099,-181.42649,0.00038809,95]
[393556859,1762797061109,-181.42649,0.00038809,95]
[393556860,1762797061120,-151.0,0.00038809,120]
[393556861,1762797061130,-181.42649,0.00038809,95]
[393556862,1762797061140,-151.0,0.00038809,120]
[393556863,1762797061151,-181.42649,0.00038809,95]
[393556864,1762797061161,-151.0,0.00038809,120]
[393556865,1762797061171,-151.0,0.00038809,120]
[393556866,1762797061181,-151.0,0.00038809,120]
[393556867,1762797061191,-151.0,0.00038809,120]
[393556868,1762797061201,-151.0,0.00038809,120]
[393556869,1762797061211,-432.550746,0.00038809,120]
[393556870,1762797061220,-432.550746,0.00038809,120]
[393556871,1762797061231,-151.0,0.00038809,120]
[393556872,1762797061240,-432.550746,0.00038809,120]
[393556873,1762797061250,-151.0,0.00038809,120]
[393556874,1762797061259,-432.550746,0.00038809,120]
[393556875,1762797061269,-151.0,0.00038809,120]
[393556876,1762797061279,-151.0,0.00038809,120]
[393556877,1762797061288,-162.367519,0.00038809,30]
[393556878,1762797061298,-223.764812,0.00038809,120]
[393556879,1762797061309,-223.764812,0.00038809,120]
[393556880,1762797061329,-223.764812,0.00038809,120]
[393556881,1762797061340,-223.764812,0.00038809,120]
[393556882,1762797061351,-266.90100162,0.0003884,50]
[393556883,1762797061361,-171.95,0.00038849,120]
[393556884,1762797061371,-161.81162637,0.00038858,2]
[393556885,1762797061381,-222.44773578,0.00038865,120]
[393556886,1762797061391,-445.0,0.00038886,90]
[393556887,1762797061402,-283.533,0.00038888,30]
[393556888,1762797061412,-1315.871917,0.00038896,2]
[393556889,1762797061422,-1255.32353139,0.000389,30]
[393556890,1762797061432,-20305.0,0.000389,30]
[393556891,1762797061442,-151.0,0.000389,120]
[393556892,1762797061452,-7129.18967903,0.000389,2]
[393556893,1762797061465,-151.0,0.000389,120]
[393556894,1762797061475,-151.0,0.000389,120]
[393556895,1762797061484,-151.0,0.000389,120]
[393556896,1762797061494,-480.920007,0.000389,120]
[393556897,1762797061505,-151.0,0.000389,120]
[393556898,1762797061515,-151.0,0.000389,120]
[393556899,1762797061524,-151.0,0.000389,120]
[393556900,1762797061535,-480.920007,0.000389,120]
[393556901,1762797061544,-168.871777,0.000389,120]
[393556902,1762797061554,-480.920007,0.000389,120]
[393556903,1762797061563,-151.0,0.000389,30]
[393556904,1762797061573,-168.871777,0.000389,120]
[393556905,1762797061582,-480.920007,0.000389,120]
[393556906,1762797061592,-151.0,0.000389,30]
[393556907,1762797061602,-168.871777,0.000389,120]
[393556908,1762797061612,-168.871777,0.000389,120]
[393556909,1762797061621,-152.525794,0.000389,120]
[393556910,1762797061630,-156.238457,0.000389,14]
[393556911,1762797061640,-276.969037,0.000389,120]
[393556912,1762797061650,-276.969037,0.000389,120]
[393556913,1762797061660,-276.969037,0.000389,120]
[393556914,1762797061670,-276.969037,0.000389,120]
[393556915,1762797061679,-446.783829,0.000389,120]
[393556916,1762797061689,-446.783829,0.000389,120]
[393556917,1762797061698,-446.783829,0.000389,120]
[393556918,1762797061707,-446.783829,0.000389,120]
[393556919,1762797061717,-449.145345,0.000389,120]
[393556920,1762797061727,-449.145345,0.000389,120]
[393556921,1762797061737,-449.145345,0.000389,120]
[393556922,1762797061747,-449.145345,0.000389,120]
[393556923,1762797061757,-176.05373312,0.000389,2]
[393556924,1762797061766,-999.0,0.00038904,120]
[393556925,1762797061775,-211.0,0.0003891,30]
[393556926,1762797061784,-688.0,0.00038913,20]
[393556927,1762797061794,-171.95,0.00038949,120]
[393556928,1762797061803,-161.81162637,0.00038958,2]
[393556929,1762797061812,-500.0,0.00038999,2]
[393556930,1762797061822,-27866.10163114,0.00039,2]
[393556931,1762797062064,-478.32096809,0.00023626,2]
[393556932,1762797062075,-151.0,0.000313,30]
[393556933,1762797062085,-160.589142,0.000313,31]
[393556934,1762797062095,-239.033808,0.000313,31]
[393556935,1762797062106,-294.67958018,0.000313,31]
[393556936,1762797062116,-250.476301,0.00036164,30]
[393556937,1762797062126,-250.476301,0.00036164,30]
[393556938,1762797062135,-16.30679867,0.00038,31]
[393556939,1762797062148,-134.69320133,0.00038,31]
[393556940,1762797062159,-250.476301,0.00038,30]
[393556941,1762797062169,-151.0,0.00038,30]
[393556942,1762797062179,-160.589142,0.00038,31]
[393556943,1762797062190,-239.033808,0.00038,31]
[393556944,1762797062200,-250.476301,0.00038,30]
[393556945,1762797062211,-1356.68310228,0.00038633,10]
[393556946,1762797062221,-33726.76182579,0.00039,2]
[393556947,1762797062235,-12527.06981383,0.00039,2]
[393556948,1762797062253,-1090.11786373,0.00039,2]
[393556949,1762797062298,-26132.01391323,0.00039,2]
[393556950,1762797062308,-4905.04851535,0.00039,30]
[393556951,1762797062319,-3689.02405255,0.00039,7]
[393556952,1762797062329,-5500.0,0.00039,10]
[393556953,1762797062339,-168.0,0.00039,30]
[393556954,1762797062349,-440.0,0.00039,3]
[393556955,1762797062359,-491.86806601,0.00039,120]
[393556956,1762797062369,-150.0,0.00039,3]
[393556957,1762797062379,-184.34075256,0.00039,2]
[393556958,1762797062390,-2000.0,0.00039,2]
[393556959,1762797062400,-2000.0,0.00039,2]
[393556960,1762797062410,-2000.0,0.00039,2]
[393556961,1762797062421,-2000.0,0.00039,2]
[393556962,1762797062431,-1980.02,0.00039,2]
[393556963,1762797062442,-8748.30972449,0.00039,4]
[393556964,1762797062453,-68602.63160004,0.00039,2]
[393556965,1762797062465,-151.0,0.00039,120]
[393556966,1762797062475,-151.0,0.00039,120]
[393556967,1762797062485,-151.0,0.00039,120]
[393556968,1762797062495,-151.0,0.00039,120]
[393556969,1762797062506,-152.220424,0.00039,120]
[393556970,1762797062516,-151.0,0.00039,120]
[393556971,1762797062530,-151.0,0.00039,120]
[393556972,1762797062540,-151.0,0.00039,120]
[393556973,1762797062550,-151.0,0.00039,120]
[393556974,1762797062560,-151.0,0.00039,120]
[393556975,1762797062571,-151.0,0.00039,120]
[393556976,1762797062580,-151.0,0.00039,120]
[393556977,1762797062590,-151.0,0.00039,120]
[393556978,1762797062601,-263.395427,0.00039,120]
[393556979,1762797062612,-151.0,0.00039,60]
[393556980,1762797062622,-261.6248,0.00039,120]
[393556981,1762797062632,-261.6248,0.00039,120]
[393556982,1762797062642,-261.6248,0.00039,120]
[393556983,1762797062652,-261.6248,0.00039,120]
[393556984,1762797062662,-151.0,0.00039,120]
[393556985,1762797062672,-151.0,0.00039,120]
[393556986,1762797062682,-151.0,0.00039,120]
[393556987,1762797062692,-151.0,0.00039,120]
[393556988,1762797062702,-151.0,0.00039,120]
[393556989,1762797062712,-211.999158,0.00039,120]
[393556990,1762797062721,-151.0,0.00039,120]
[393556991,1762797062732,-151.0,0.00039,120]
[393556992,1762797062742,-151.0,0.00039,120]
[393556993,1762797062752,-151.0,0.00039,120]
[393556994,1762797062762,-151.0,0.00039,120]
[393556995,1762797062773,-151.0,0.00039,120]
[393556996,1762797062785,-151.0,0.00039,120]
[393556997,1762797062795,-151.0,0.00039,120]
[393556998,1762797062805,-151.0,0.00039,90]
[393556999,1762797062815,-151.0,0.00039,120]
[393557000,1762797062825,-151.0,0.00039,90]
[393557001,1762797062835,-151.0,0.00039,120]
[393557002,1762797062845,-151.0,0.00039,120]
[393557003,1762797062855,-153.724025,0.00039,120]
[393557004,1762797062864,-364.780246,0.00039,120]
[393557005,1762797062874,-364.780246,0.00039,120]
[393557006,1762797062884,-151.0,0.00039,120]
[393557007,1762797062894,-364.780246,0.00039,120]
[393557008,1762797062904,-242.656944,0.00039,120]
[393557009,1762797062914,-364.780246,0.00039,120]
[393557010,1762797062924,-242.656944,0.00039,120]
[393557011,1762797062934,-151.0,0.00039,120]
[393557012,1762797062944,-151.0,0.00039,120]
[393557013,1762797062954,-242.656944,0.00039,120]
[393557014,1762797062964,-242.656944,0.00039,120]
[393557015,1762797062975,-151.0,0.00039,120]
[393557016,1762797062984,-151.0,0.00039,120]
[393557017,1762797062994,-151.0,0.00039,120]
[393557018,1762797063004,-151.0,0.00039,120]
[393557019,1762797063014,-151.711308,0.00039,120]
[393557020,1762797063024,-151.711308,0.00039,120]
[393557021,1762797063035,-194.546954,0.00039,120]
[393557022,1762797063045,-194.310379,0.00039,120]
[393557023,1762797063055,-151.711308,0.00039,120]
[393557024,1762797063064,-270.170649,0.00039,120]
[393557025,1762797063074,-164.433889,0.00039,120]
[393557026,1762797063083,-194.546954,0.00039,120]
[393557027,1762797063093,-194.310379,0.00039,120]
[393557028,1762797063104,-151.711308,0.00039,120]
[393557029,1762797063114,-164.433889,0.00039,120]
[393557030,1762797063124,-194.546954,0.00039,120]
[393557031,1762797063134,-194.310379,0.00039,120]
[393557032,1762797063144,-151.0,0.00039,120]
[393557033,1762797063154,-194.546954,0.00039,120]
[393557034,1762797063165,-164.433889,0.00039,120]
[393557035,1762797063174,-194.310379,0.00039,120]
[393557036,1762797063185,-151.0,0.00039,120]
[393557037,1762797063195,-151.0,0.00039,120]
[393557038,1762797063205,-151.0,0.00039,120]
[393557039,1762797063215,-151.0,0.00039,120]
[393557040,1762797063226,-164.433889,0.00039,120]
[393557041,1762797063236,-151.0,0.00039,120]
[393557042,1762797063246,-151.0,0.00039,120]
[393557043,1762797063256,-151.0,0.00039,120]
[393557044,1762797063267,-194.360856,0.00039,120]
[393557045,1762797063278,-194.360856,0.00039,120]
[393557046,1762797063288,-194.360856,0.00039,120]
[393557047,1762797063298,-194.360856,0.00039,120]
[393557048,1762797063308,-1286.7423,0.00039,7]
[393557049,1762797063318,-1286.7423,0.00039,7]
[393557050,1762797063329,-1286.7423,0.00039,7]
[393557051,1762797063338,-1286.7423,0.00039,7]
[393557052,1762797063348,-151.0,0.00039,120]
[393557053,1762797063359,-151.0,0.00039,120]
[393557054,1762797063369,-177.622712,0.00039,120]
[393557055,1762797063380,-151.0,0.00039,120]
[393557056,1762797063390,-151.0,0.00039,120]
[393557057,1762797063400,-151.0,0.00039,120]
[393557058,1762797063409,-151.0,0.00039,120]
[393557059,1762797063419,-161.148204,0.00039,120]
[393557060,1762797063430,-151.0,0.00039,120]
[393557061,1762797063439,-151.0,0.00039,120]
[393557062,1762797063450,-151.0,0.00039,120]
[393557063,1762797063462,-151.0,0.00039,120]
[393557064,1762797063472,-151.0,0.00039,120]
[393557065,1762797063484,-361.6623,0.00039,120]
[393557066,1762797063499,-361.6623,0.00039,120]
[393557067,1762797063508,-361.6623,0.00039,120]
[393557068,1762797063518,-361.6623,0.00039,120]
[393557069,1762797063529,-151.0,0.00039,120]
[393557070,1762797063540,-151.0,0.00039,120]
[393557071,1762797063550,-151.0,0.00039,120]
[393557072,1762797063560,-319.431779,0.00039,120]
[393557073,1762797063571,-319.431779,0.00039,120]
[393557074,1762797063582,-319.431779,0.00039,120]
[393557075,1762797063592,-319.431779,0.00039,120]
[393557076,1762797063602,-1008.0,0.00039,7]
[393557077,1762797063613,-183.0,0.00039,2]
[393557078,1762797063623,-150.05,0.00039001,30]
[393557079,1762797063634,-176.05373312,0.00039027,2]
[393557080,1762797063643,-171.95,0.00039049,120]
[393557081,1762797063653,-161.81162637,0.00039058,2]
[393557082,1762797063663,-2500.0,0.00039066,14]
[393557083,1762797063673,-1069.25746225,0.00039066,14]
[393557084,1762797063683,-151.0,0.00039066,120]
[393557085,1762797063692,-151.0,0.00039066,120]
[393557086,1762797063702,-151.0,0.00039066,120]
[393557087,1762797063711,-256.840647,0.00039066,120]
[393557088,1762797063721,-151.0,0.00039066,120]
[393557089,1762797063733,-151.0,0.00039066,120]
[393557090,1762797063743,-256.840647,0.00039066,120]
[393557091,1762797063753,-151.0,0.00039066,120]
[393557092,1762797063763,-256.840647,0.00039066,120]
[393557093,1762797063773,-256.840647,0.00039066,120]
[393557094,1762797063783,-151.0,0.00039066,120]
[393557095,1762797063793,-160.195872,0.00039066,120]
[393557096,1762797063804,-160.195872,0.00039066,120]
[393557097,1762797063814,-151.0,0.00039066,120]
[393557098,1762797063827,-160.195872,0.00039066,120]
[393557099,1762797063842,-151.0,0.00039066,120]
[393557100,1762797063852,-160.195872,0.00039066,120]
[393557101,1762797063862,-151.0,0.00039066,120]
[393557102,1762797063873,-151.0,0.00039066,120]
[393557103,1762797063883,-637.258256,0.00039066,120]
[393557104,1762797063892,-151.0,0.00039066,120]
[393557105,1762797063902,-637.258256,0.00039066,120]
[393557106,1762797063911,-637.258256,0.00039066,120]
[393557107,1762797063921,-637.258256,0.00039066,120]
[393557108,1762797063931,-151.0,0.00039066,120]
[393557109,1762797063940,-151.0,0.00039066,120]
[393557110,1762797063950,-151.0,0.00039066,30]
[393557111,1762797063959,-151.0,0.00039066,30]
[393557112,1762797063970,-260.383848,0.00039066,120]
[393557113,1762797063980,-260.383848,0.00039066,120]
[393557114,1762797063989,-260.383848,0.00039066,120]
[393557115,1762797063999,-260.383848,0.00039066,120]
[393557116,1762797064008,-5800.0,0.00039109,14]
[393557117,1762797064018,-1115.17650255,0.00039115,2]
[393557118,1762797064028,-5800.0,0.00039117,14]
[393557119,1762797064038,-151.0,0.00039122,14]
[393557120,1762797064048,-5800.0,0.00039126,14]
[393557121,1762797064058,-5800.0,0.00039134,14]
[393557122,1762797064067,-5800.0,0.00039137,14]
[393557123,1762797064077,-436.98789226,0.00039137,120]
[393557124,1762797064086,-499.23108201,0.00039137,120]
[393557125,1762797064096,-5800.0,0.00039142,14]
[393557126,1762797064106,-5800.0,0.00039143,14]
[393557127,1762797064116,-171.95,0.00039149,120]
[393557128,1762797064126,-176.05373312,0.00039153,2]
[393557129,1762797064135,-161.81162637,0.00039158,2]
[393557130,1762797064145,-608.0,0.00039158,2]
[393557131,1762797064155,-1316.0,0.00039158,2]
[393557132,1762797064166,-3426.0,0.00039158,2]
[393557133,1762797064176,-574.0,0.00039158,2]
[393557134,1762797064186,-1597.0,0.00039158,2]
[393557135,1762797064197,-820.0,0.00039158,2]
[393557136,1762797064207,-1189.0,0.00039158,2]
[393557137,1762797064217,-906.0,0.00039158,2]
[393557138,1762797064228,-813.0,0.00039158,2]
[393557139,1762797064239,-1274.0,0.00039158,2]
[393557140,1762797064249,-2142.0,0.00039158,2]
[393557141,1762797064261,-6662.0,0.00039158,2]
[393557142,1762797064435,-21405.54529521,0.00039182,2]
[393557143,1762797064444,-500.0,0.00039199,2]
[393557144,1762797064456,-170682.39762466,0.000392,3]
[393557145,1762797064782,-1127.93495063,0.000392,3]
[393557146,1762797064792,-151.0,0.000392,120]
[393557147,1762797064802,-467.021213,0.000392,91]
[393557148,1762797064821,-151.0,0.000392,120]
[393557149,1762797064831,-467.021213,0.000392,91]
[393557150,1762797064841,-467.021213,0.000392,91]
[393557151,1762797064851,-215.888626,0.000392,120]
[393557152,1762797064860,-467.021213,0.000392,91]
[393557153,1762797064870,-215.888626,0.000392,120]
[393557154,1762797064879,-215.888626,0.000392,120]
[393557155,1762797064889,-805.913406,0.000392,120]
[393557156,1762797064899,-215.888626,0.000392,120]
[393557157,1762797064910,-151.0,0.000392,120]
[393557158,1762797064920,-805.913406,0.000392,120]
[393557159,1762797064934,-239.033808,0.000392,120]
[393557160,1762797064944,-151.0,0.000392,120]
[393557161,1762797064955,-805.913406,0.000392,120]
[393557162,1762797064965,-239.033808,0.000392,120]
[393557163,1762797064975,-436.2263665,0.000392,120]
[393557164,1762797065153,-560.0,0.00027382,2]
[393557165,1762797065163,-3410.0,0.00027605,2]
[393557166,1762797065174,-304.2716808,0.00027605,2]
[393557167,1762797065190,-12783.80062459,0.00027605,2]
[393557168,1762797065200,-2647.03,0.00030065,2]
[393557169,1762797065210,-560.0,0.00030382,2]
[393557170,1762797065219,-160.589142,0.000313,31]
[393557171,1762797065231,-151.0,0.000313,30]
[393557172,1762797065241,-160.589142,0.000313,31]
[393557173,1762797065251,-560.0,0.00033382,2]
[393557174,1762797065260,-250.476301,0.00036164,30]
[393557175,1762797065270,-160.589142,0.00038,31]
[393557176,1762797065280,-151.0,0.00038,30]
[393557177,1762797065289,-250.476301,0.00038,30]
[393557178,1762797065299,-160.589142,0.00038,31]
[393557179,1762797065310,-369.6870395,0.000392,120]
[393557180,1762797065320,-239.033808,0.000392,120]
[393557181,1762797065330,-151.0,0.000392,120]
[393557182,1762797065339,-151.0,0.000392,30]
[393557183,1762797065349,-151.0,0.000392,120]
[393557184,1762797065359,-250.476301,0.000392,30]
[393557185,1762797065368,-151.0,0.000392,30]
[393557186,1762797065378,-160.589142,0.000392,120]
[393557187,1762797065387,-239.033808,0.000392,120]
[393557188,1762797065397,-250.476301,0.000392,30]
[393557189,1762797065406,-160.589142,0.000392,120]
[393557190,1762797065415,-151.0,0.000392,30]
[393557191,1762797065425,-250.476301,0.000392,30]
[393557192,1762797065434,-171.95,0.00039249,120]
[393557193,1762797065443,-245.49535761,0.00039264,120]
[393557194,1762797065453,-150.0,0.00039265,2]
[393557195,1762797065465,-604.2717264,0.0003927,2]
[393557196,1762797065475,-176.05373312,0.0003928,2]
[393557197,1762797065485,-211.33288203,0.00039283,120]
[393557198,1762797065495,-15916.52593556,0.00039289,2]
[393557199,1762797065506,-2068.55478655,0.00039289,120]
[393557200,1762797065515,-449.92740017,0.000393,120]
[393557201,1762797065525,-176.35216851,0.000393,120]
[393557202,1762797065537,-184.99591007,0.000393,120]
[393557203,1762797065547,-222.27190956,0.000393,120]
[393557204,1762797065557,-188.48671113,0.000393,120]
[393557205,1762797065566,-203.13093491,0.000393,120]